Workbook

Sheet Tjek
C1: Satser pr. 1-3-2013 til 1-3-2020 | I1: Slet indtastninger: <Ctrl>+q | AA1: 2013-03-01
B2: =VLOOKUP(C10,C61:E64,2,FALSE) ->  | C2: LØNTJEK | I2: OVERENSKOMST: DI / Pleje og omsorg | AA2: 2013-04-01
AA3: 2013-05-01
B4: =C15 -> 0 | AA4: 2013-06-01
C5: Dato på lønseddel | I5: Grundløn: | AA5: 2013-07-01
I6: grundløn | K6: =IFERROR(VLOOKUP(stilling,grundløn,VLOOKUP(C6,kolonne_nr,2,TRUE)+3,FALSE)/fuldtidsnorm*$C$18,0) -> 0 | AA6: 2013-08-01
C7: =IF(C6<>"",DATE(YEAR(C6),MONTH(C6)-1,DAY(C6)),"") ->  | I7: gruppetillæg (geografi) | K7: =IFERROR(VLOOKUP(område,gr_tillæg,VLOOKUP(C6,kolonne_nr,2,TRUE)+2,FALSE)/fuldtidsnorm*$C$18,0) -> 0 | AA7: 2013-09-01
AA8: 2013-10-01
C9: Stilling: | I9: Tillæg: | AA9: 2013-11-01
I10: servicetillæg | K10: =IFERROR(VLOOKUP(1,servicetillæg,VLOOKUP(C6,kolonne_nr,2,TRUE)+2,FALSE)/fuldtidsnorm*$C$18,0) -> 0 | AA10: 2013-12-01
AA11: 2014-01-01
I12: kvalifikationsløn (års anciennitet) | K12: =IFERROR(VLOOKUP(J12,anc_tillæg,VLOOKUP(C6,kolonne_nr,2,TRUE)+2,TRUE)/fuldtidsnorm*$C$18,0) -> 0 | AA12: 2014-02-01
AA13: 2014-03-01
C14: Område/løngruppe: | I14: funktionsløn, lokalt aftalt | K14: =J14 -> 0 | AA14: 2014-04-01
I15: kvalifikationsløn, lokalt aftalt | K15: =J15 -> 0 | AA15: 2014-05-01
AA16: 2014-06-01
C17: Timetal (timer/uge jf. ansættelsesbrev): | I17: fast månedsløn | K17: =SUM(K2:K15) -> 0 | AA17: 2014-07-01
I18: timeløn | K18: =IFERROR((K17/timetal*fuldtidsnorm)*12/1924,0) -> 0 | AA18: 2014-08-01
C19: ="(svarende til "&ROUND(timetal*52/12,2)&" timer/måned)" -> (svarende til 0 timer/måned) | AA19: 2014-09-01
I20: Særydelser: | AA20: 2014-10-01
I21: merarbejde/udbetalt afsp. | K21: =K18*(CEILING((J21)*2,1)/2) -> 0 | AA21: 2014-11-01
I22: overarbejde | K22: =K18*(1+50%)*(CEILING(J22*2,1)/2) -> 0 | AA22: 2014-12-01
AA23: 2015-01-01
I24: timer; 18-07 | K24: =IFERROR(J24*VLOOKUP(3,særydelser,VLOOKUP($C$7,kolonne_nr,2,TRUE)+2,FALSE),0) -> 0 | AA24: 2015-02-01
I25: timer; lørdag/mandag | K25: =IFERROR((CEILING(J25*2,1)/2)*VLOOKUP(4,særydelser,VLOOKUP($C$7,kolonne_nr,2,TRUE)+2,FALSE),0) -> 0 | AA25: 2015-03-01
I26: timer; søn- og helligdag | K26: =IFERROR((CEILING(J26*2,1)/2)*K18*VLOOKUP(5,særydelser,VLOOKUP($C$7,kolonne_nr,2,TRUE)+2,FALSE),0) -> 0 | AA26: 2015-04-01
AA27: 2015-05-01
I28: omlagt tjeneste | K28: =IFERROR(J28*VLOOKUP(1,særydelser,VLOOKUP($C$7,kolonne_nr,2,TRUE)+2,FALSE),0) -> 0 | AA28: 2015-06-01
AA29: 2015-07-01
I30: aften/nattimer (3/37) udbetalt | K30: =J30/37*3*K18 -> 0 | AA30: 2015-08-01
AA31: 2015-09-01
I32: inddraget fridøgn | K32: =IFERROR(J32*VLOOKUP(2,særydelser,VLOOKUP($C$7,kolonne_nr,2,TRUE)+2,FALSE),0) -> 0 | AA32: 2015-10-01
AA33: 2015-11-01
I34: rådighedsvagt (fra bolig) | K34: =IFERROR(J34*VLOOKUP(6,særydelser,VLOOKUP($C$7,kolonne_nr,2,TRUE)+2,FALSE),0) -> 0 | AA34: 2015-12-01
AA35: 2016-01-01
I36: beklædningsgodtg. (vask) | K36: =IF(G36<>"",VLOOKUP(7,særydelser,VLOOKUP($C$7,kolonne_nr,2,TRUE)+2,FALSE)*timetal*52/12,0) -> 0 | AA36: 2016-02-01
I37: beklædningsgodtg. (vask og tøj) | K37: =IF(G37<>"",VLOOKUP(8,særydelser,VLOOKUP($C$7,kolonne_nr,2,TRUE)+2,FALSE)*timetal*52/12,0) -> 0 | AA37: 2016-03-01
AA38: 2016-04-01
I39: ferieberettiget løn | K39: =SUM(K21:K38,K17) -> 0 | AA39: 2016-05-01
AA40: 2016-06-01
I41: særlig opsparing | K41: =IFERROR(K39*VLOOKUP(1,sær_ops,VLOOKUP(C6,kolonne_nr,2,TRUE)+2,FALSE),0) -> 0 | AA41: 2016-07-01
AA42: 2016-08-01
I43: pensionsgivende løn | K43: =K39+K41 -> 0 | AA43: 2016-09-01
AA44: 2016-10-01
I45: Pensionsprocent | K45: =J45*K43 -> 0 | AA45: 2016-11-01
I46: pensionsbidrag, medarbejder | J46: =IF(J45="","",J45/3) ->  | K46: =IFERROR(J46*$K$43,0) -> 0 | AA46: 2016-12-01
I47: pensionsbidrag, arbejdsgiver | J47: =IF(J45<>"",VLOOKUP(1,sundhedsbidrag,(VLOOKUP(C6,kolonne_nr,2,TRUE)+1),FALSE)+J45/3*2,"") ->  | K47: =IFERROR(J47*$K$43,0) -> 0 | AA47: 2017-01-01
I48: =IF(J45="","","(inkl. sundhedsbidrag: "&ROUND((SUM(J46:J47)-J45)*100,2)&"%)") ->  | AA48: 2017-02-01
AA49: 2017-03-01
AA50: 2017-04-01
AA51: 2017-05-01
AA52: 2017-06-01
AA53: 2017-07-01
AA54: 2017-08-01
C55: 0 | J55: 0.072 | AA55: 2017-09-01
C56: 1 | J56: 0.132 | AA56: 2017-10-01
C57: 2 | AA57: 2017-11-01
C58: 3 | AA58: 2017-12-01
C59: 4 | AA59: 2018-01-01
AA60: 2018-02-01
C61: Ikke-uddannede, husassist., servicemedarb. | D61: 1 | AA61: 2018-03-01
C62: Hjemmehjælpere | D62: 2 | AA62: 2018-04-01
C63: Social- og sundhedshj., sygehj. m.fl. | D63: 3 | AA63: 2018-05-01
C64: Social- og sundhedsass., plejehj.ass., plejere | D64: 4 | AA64: 2018-06-01
AA65: 2018-07-01
AA66: 2018-08-01
AA67: 2018-09-01
AA68: 2018-10-01
AA69: 2018-11-01
AA70: 2018-12-01
AA71: 2019-01-01
AA72: 2019-02-01
AA73: 2019-03-01
AA74: 2019-04-01
AA75: 2019-05-01
AA76: 2019-06-01
AA77: 2019-07-01
AA78: 2019-08-01
AA79: 2019-09-01
AA80: 2019-10-01
AA81: 2019-11-01
AA82: 2019-12-01
AA83: 2020-01-01
AA84: 2020-02-01

Sheet Omregnere
C2: minutter | D2: decimaltal
C3: 30 | D3: =C3/60 -> 0.5
C5: Timer pr. uge | D5: timer pr. måned
C6: 28.00002 | D6: =C6*52/12 -> 121.33342
C8: lokalt tillæg reduceret | D8: timetal /uge el. måned | E8: lokalt tillæg fuldt
C9: 500 | D9: 121.3333 | E9: =IF(D9>1942/52,ROUND(C9/D9*(1924/12),0),ROUND(C9/D9*37,0)) -> 661

Sheet Gl.satsark (hidden)
C1: §5a, 1 | D1: §5a, 2 | E1: §5a, 2 | F1: §5b | G1: §7, 1 | H1: §7, 1 | I1: §9 | K1: § 17, 5 | L1: § 17, 8 | M1: § 18, 1 | N1: § 18, 2 | O1: § 18, 3 | P1: § 19, 1 | Q1: § 19, 1 | X1: §25 | Y1: §25
A2: 1 | B2: 2 | C2: 3 | D2: 4 | E2: 5 | F2: 6 | G2: 7 | H2: 8 | I2: 9 | J2: 10 | K2: 11 | L2: 12 | M2: 13 | N2: 14 | O2: 15 | P2: 16 | Q2: 17 | R2: 18 | S2: 19 | T2: 20 | U2: 21 | V2: 22 | W2: 23 | X2: 24 | Y2: 25 | Z2: 26 | AA2: 27 | AB2: 28
B3: 1. marts 2013 | C3: Grundløn | D3: Grundløn | E3: Grundløn | F3: servicetill. | G3: anciennitet | H3: anciennitet | I3: Særlig opsp. | K3: omlagte timer | L3: inddraget | P3: Rådighed | Q3: Rådighed | X3: Beklædningsgodtgørelse
D4: gr. 1 og 2 | E4: gr. 3 og 4 | G4: 2 år | H4: 6 år | L4: fridøgn | M4: 18-07 | N4: lø/ma | O4: sø/hell. | P4: bopæl | Q4: vagtvær. | X4: vask | Y4: vask og tøj
A5: 1 | B5: Ikke-uddannede, husass., servicemedarb | C5: 20211.2 | D5: 537 | E5: 1074 | F5: 505.04 | G5: 760.74 | H5: 1360.74 | I5: 0.01 | K5: 32.78 | L5: 316.89 | M5: 25.42 | N5: 29.67 | O5: 0.5 | P5: 34 | Q5: =3/4 -> 0.75 | X5: 0.73 | Y5: 1.67
A6: 2 | B6: Hjemmehjælpere | C6: 20541.48 | X6: 0.73 | Y6: 1.67
A7: 3 | B7: SSHJ, sygehj. m.fl. | C7: 21035.3 | X7: 0.73 | Y7: 1.67
A8: 4 | B8: SSA, plejehj.ass., plejere | C8: 21913.91 | X8: 0.73 | Y8: 1.67
A10: § 5a, 2 | B10: Områdetillæg
A11: 0 | B11: 0 | D11: fuld tid, månedsnorm
A12: 1 | B12: =$D$5 -> 537 | D12: =37 -> 37 | G12: 2012-03-01 | H12: 2013-03-01 | J12: 2012-03-01 | K12: 32.78 | L12: 316.89 | M12: 25.07 | N12: 29.67 | O12: 0.5 | P12: 34 | Q12: 0.75
A13: 2 | B13: =$D$5 -> 537 | F13: Ikke-uddannede, husass., servicemedarb | G13: 19914.59 | H13: 20211.2 | J13: 2013-03-01 | K13: 32.78 | L13: 316.89 | M13: 25.42 | N13: 29.67 | O13: 0.5 | P13: 34 | Q13: 0.75
A14: 3 | B14: =$E$5 -> 1074 | F14: Hjemmehjælpere | G14: 20244.87 | H14: 20541.48
A15: 4 | B15: =$E$5 -> 1074 | F15: SSHJ, sygehj. m.fl. | G15: 20738.69 | H15: 21035.3
F16: SSA, plejehj.ass., plejere | G16: 21617.3 | H16: 21913.91
A17: § 7, 1 | B17: erfaringstillæg
A18: 0 | B18: 0
A19: 1 | B19: 0
A20: 2 | B20: =$G$5 -> 760.74
A21: 3 | B21: =$G$5 -> 760.74
A22: 4 | B22: =$G$5 -> 760.74
A23: 5 | B23: =$G$5 -> 760.74
A24: 6 | B24: =$H$5 -> 1360.74
A25: 7 | B25: =$H$5 -> 1360.74
A26: 8 | B26: =$H$5 -> 1360.74
A29: § 16, 1 og 2 | B29: pension | C29: arbejdsgiverbidrag
B30: egetbidrag | C30: inkl. sundhedsbidrag
A31: 0.072 | B31: 0.024 | C31: 0.0495 | F31: =A31-B31 -> 0.048 | G31: =C31-F31 -> 0.0015
A32: 0.132 | B32: 0.044 | C32: 0.0895 | F32: =A32-B32 -> 0.088 | G32: =C32-F32 -> 0.0015

Sheet kommuner_afd (hidden)
A1: k.nr. | B1: k.navn | C1: løngruppe | H1: Liste, stillinger
A2: 165 | B2: Albertslund | C2: 4 | E2: 165 | F2: 1 | H2: Ikke-uddannede, husass., servicemedarb | I2: 1
A3: 201 | B3: Allerød | C3: 3 | E3: 201 | F3: 1 | H3: Hjemmehjælpere | I3: 2
A4: 420 | B4: Assens | C4: 0 | E4: 420 | F4: 3 | H4: SSHJ, sygehj. m.fl. | I4: 3
A5: 151 | B5: Ballerup | C5: 4 | E5: 151 | F5: 1 | H5: SSA, plejehj.ass., plejere | I5: 4
A6: 530 | B6: Billund | C6: 0 | E6: 530 | F6: 3
A7: 400 | B7: Bornholm | C7: 0 | E7: 400 | F7: 1
A8: 153 | B8: Brøndby | C8: 4 | E8: 153 | F8: 1
A9: 810 | B9: Brønderslev-Dronninglund | C9: 0 | E9: 810 | F9: 5
A10: 155 | B10: Dragør | C10: 4 | E10: 155 | F10: 1
A11: 240 | B11: Egedal | C11: 4 | E11: 240 | F11: 1
A12: 561 | B12: Esbjerg | C12: 1 | E12: 561 | F12: 3
A13: 563 | B13: Fanø | C13: 0 | E13: 563 | F13: 3
A14: 710 | B14: Favrskov | C14: 0 | E14: 710 | F14: 4
A15: 320 | B15: Faxe | C15: 0 | E15: 320 | F15: 2
A16: 210 | B16: Fredensborg | C16: 3 | E16: 210 | F16: 1
A17: 607 | B17: Fredericia | C17: 0 | E17: 607 | F17: 3
A18: 147 | B18: Frederiksberg | C18: 4 | E18: 147 | F18: 1
A19: 813 | B19: Frederikshavn | C19: 1 | E19: 813 | F19: 5
A20: 250 | B20: Frederikssund | C20: 3 | E20: 250 | F20: 1
A21: 190 | B21: Furesø | C21: 4 | E21: 190 | F21: 1
A22: 430 | B22: Faaborg-Midtfyn | C22: 1 | E22: 430 | F22: 3
A23: 157 | B23: Gentofte | C23: 4 | E23: 157 | F23: 1
A24: 159 | B24: Gladsaxe | C24: 4 | E24: 159 | F24: 1
A25: 161 | B25: Glostrup | C25: 4 | E25: 161 | F25: 1
A26: 253 | B26: Greve | C26: 4 | E26: 253 | F26: 2
A27: 270 | B27: Gribskov | C27: 3 | E27: 270 | F27: 1
A28: 376 | B28: Guldborgsund | C28: 0 | E28: 376 | F28: 2
A29: 510 | B29: Haderslev | C29: 0 | E29: 510 | F29: 3
A30: 260 | B30: Halsnæs | C30: 3 | E30: 260 | F30: 1
A31: 766 | B31: Hedensted | C31: 0 | E31: 766 | F31: 4
A32: 217 | B32: Helsingør | C32: 3 | E32: 217 | F32: 1
A33: 163 | B33: Herlev | C33: 4 | E33: 163 | F33: 1
A34: 657 | B34: Herning | C34: 0 | E34: 657 | F34: 4
A35: 219 | B35: Hillerød | C35: 3 | E35: 219 | F35: 1
A36: 860 | B36: Hjørring | C36: 0 | E36: 860 | F36: 5
A37: 316 | B37: Holbæk | C37: 0 | E37: 316 | F37: 2
A38: 661 | B38: Holstebro | C38: 0 | E38: 661 | F38: 4
A39: 615 | B39: Horsens | C39: 0 | E39: 615 | F39: 4
A40: 167 | B40: Hvidovre | C40: 4 | E40: 167 | F40: 1
A41: 169 | B41: Høje-Taastrup | C41: 4 | E41: 169 | F41: 1
A42: 223 | B42: Hørsholm | C42: 3 | E42: 223 | F42: 1
A43: 756 | B43: Ikast-Brande | C43: 0 | E43: 756 | F43: 4
A44: 183 | B44: Ishøj | C44: 4 | E44: 183 | F44: 1
A45: 849 | B45: Jammerbugt | C45: 0 | E45: 849 | F45: 5
A46: 326 | B46: Kalundborg | C46: 1 | E46: 326 | F46: 2
A47: 440 | B47: Kerteminde | C47: 1 | E47: 440 | F47: 3
A48: 621 | B48: Kolding | C48: 0 | E48: 621 | F48: 3
A49: 101 | B49: København | C49: 4 | E49: 101 | F49: 1
A50: 259 | B50: Køge | C50: 2 | E50: 259 | F50: 2
A51: 482 | B51: Langeland | C51: 0 | E51: 482 | F51: 3
A52: 350 | B52: Lejre | C52: 2 | E52: 350 | F52: 2
A53: 665 | B53: Lemvig | C53: 0 | E53: 665 | F53: 4
A54: 360 | B54: Lolland | C54: 0 | E54: 360 | F54: 2
A55: 173 | B55: Lyngby-Taarbæk | C55: 4 | E55: 173 | F55: 1
A56: 825 | B56: Læsø | C56: 0 | E56: 825 | F56: 5
A57: 846 | B57: Mariagerfjord | C57: 0 | E57: 846 | F57: 5
A58: 410 | B58: Middelfart | C58: 0 | E58: 410 | F58: 3
A59: 773 | B59: Morsø | C59: 0 | E59: 773 | F59: 5
A60: 707 | B60: Norddjurs | C60: 0 | E60: 707 | F60: 4
A61: 480 | B61: Nordfyn | C61: 0 | E61: 480 | F61: 3
A62: 450 | B62: Nyborg | C62: 1 | E62: 450 | F62: 3
A63: 370 | B63: Næstved | C63: 1 | E63: 370 | F63: 2
A64: 727 | B64: Odder | C64: 0 | E64: 727 | F64: 4
A65: 461 | B65: Odense | C65: 1 | E65: 461 | F65: 3
A66: 306 | B66: Odsherred | C66: 0 | E66: 306 | F66: 2
A67: 730 | B67: Randers | C67: 0 | E67: 730 | F67: 4
A68: 840 | B68: Rebild | C68: 0 | E68: 840 | F68: 5
A69: 760 | B69: Ringkøbing-Skjern | C69: 0 | E69: 760 | F69: 4
A70: 329 | B70: Ringsted | C70: 0 | E70: 329 | F70: 2
A71: 265 | B71: Roskilde | C71: 2 | E71: 265 | F71: 2
A72: 230 | B72: Rudersdal | C72: 4 | E72: 230 | F72: 1
A73: 175 | B73: Rødovre | C73: 4 | E73: 175 | F73: 1
A74: 741 | B74: Samsø | C74: 0 | E74: 741 | F74: 4
A75: 740 | B75: Silkeborg | C75: 0 | E75: 740 | F75: 4
A76: 746 | B76: Skanderborg | C76: 1 | E76: 746 | F76: 4
A77: 779 | B77: Skive | C77: 0 | E77: 779 | F77: 4
A78: 330 | B78: Slagelse | C78: 1 | E78: 330 | F78: 2
A79: 269 | B79: Solrød | C79: 2 | E79: 269 | F79: 2
A80: 340 | B80: Sorø | C80: 0 | E80: 340 | F80: 2
A81: 336 | B81: Stevns | C81: 0 | E81: 336 | F81: 2
A82: 671 | B82: Struer | C82: 0 | E82: 671 | F82: 4
A83: 479 | B83: Svendborg | C83: 0 | E83: 479 | F83: 3
A84: 706 | B84: Syddjurs | C84: 0 | E84: 706 | F84: 4
A85: 540 | B85: Sønderborg | C85: 1 | E85: 540 | F85: 3
A86: 787 | B86: Thisted | C86: 0 | E86: 787 | F86: 5
A87: 550 | B87: Tønder | C87: 0 | E87: 550 | F87: 3
A88: 185 | B88: Tårnby | C88: 4 | E88: 185 | F88: 1
A89: 187 | B89: Vallensbæk | C89: 4 | E89: 187 | F89: 1
A90: 573 | B90: Varde | C90: 0 | E90: 573 | F90: 3
A91: 575 | B91: Vejen | C91: 0 | E91: 575 | F91: 3
A92: 630 | B92: Vejle | C92: 0 | E92: 630 | F92: 3
A93: 820 | B93: Vesthimmerland | C93: 0 | E93: 820 | F93: 5
A94: 791 | B94: Viborg | C94: 0 | E94: 791 | F94: 4
A95: 390 | B95: Vordingborg | C95: 0 | E95: 390 | F95: 2
A96: 492 | B96: Ærø | C96: 0 | E96: 492 | F96: 3
A97: 580 | B97: Aabenraa | C97: 0 | E97: 580 | F97: 3
A98: 851 | B98: Ålborg | C98: 1 | E98: 851 | F98: 5
A99: 751 | B99: Århus | C99: 2 | E99: 751 | F99: 4

Sheet regnemaskine (hidden)
P1: Social- og sundhedshjælper, Geografi: Gribskov Kommune
C3: Timer/uge | E3: 28 | I3: Timer/uge | K3: 31 | P3: Timer/uge | U3: Satser:
C4: Timetal (faste timer pr. måned) | E4: 121.333 | I4: Timetal (faste timer pr. måned) | K4: 134.3433 | P4: Timetal (faste timer pr. måned)
Q5: (input) | R5: (beregninger)
C6: grundløn | E6: 15918.56167 | I6: grundløn | K6: 17625.47787 | P6: grundløn | T6: § 5a, 1
C7: servicetillæg | E7: 382.1913825 | I7: servicetillæg | K7: 423.173016 | P7: gruppetillæg | T7: § 5a, 2
C8: gruppetillæg | E8: 812.7545239 | I8: gruppetillæg | K8: 449.9523 | P8: servicetillæg | T8: § 5b
C9: K-løn, ok (års anciennitet) | D9: 7 | E9: 1029.74636 | I9: K-løn, ok (års anciennitet) | J9: 1 | K9: 0 | P9: K-løn, ok (års anciennitet) | T9: § 7, 1
A10: * | C10: K-løn, lokalt aftalt | D10: 3450 | E10: 2610.803638 | I10: K-løn, lokalt aftalt | K10: 0 | N10: * | P10: K-løn, lokalt aftalt | T10: § 7, 2
A11: * | C11: K-løn, lokalt aftalt | E11: 0 | I11: K-løn, lokalt aftalt | K11: 0 | N11: * | P11: K-løn, lokalt aftalt | T11: § 7, 2
A12: * | B12: u | C12: F-løn, lokalt aftalt | D12: 500 | E12: 500 | I12: F-løn, lokalt aftalt | K12: 0 | N12: * | O12: u | P12: F-løn, lokalt aftalt | T12: § 6
A13: * | C13: F-løn, lokalt aftalt | E13: 0 | I13: F-løn, lokalt aftalt | K13: 0 | N13: * | P13: F-løn, lokalt aftalt | T13: § 6
C14: * 'u'; uden reduktion ved deltid | I14: fast månedsløn | K14: 18498.60319 | P14: * 'u'; uden reduktion ved deltid
C15: fast månedsløn | E15: 21254.05758 | I15: timeløn | K15: 137.6965073 | P15: fast månedsløn
C16: timeløn | E16: 175.1712855 | P16: timeløn
I17: merarbejde/udbetalt afsp. | K17: 0
C18: merarbejde/udbetalt afsp. | D18: 18 | E18: 3153.083138 | I18: overarbejde | K18: 0 | P18: merarbejde/udbetalt afsp. | T18: § 21, 3
C19: overarbejde | E19: 0 | P19: overarbejde | T19: § 21, 1-2
I20: timer; 18-07 | K20: 0
C21: timer; 18-07 | D21: 152 | E21: 3863.84 | I21: timer; lørdag/mandag | J21: 4 | K21: 118.68 | P21: timer; 18-07 | T21: § 18, 1
C22: timer; lørdag/mandag | D22: 24 | E22: 712.08 | I22: timer; søn- og helligdag | J22: 8 | K22: 550.7860291 | P22: timer; lørdag/mandag | T22: § 18, 2
C23: timer; søn- og helligdag | D23: 40 | E23: 3503.425709 | P23: timer; søn- og helligdag | T23: § 18, 3
I24: 3/37 udbetalt | K24: 0
C25: 3/37 udbetalt | D25: 152 | E25: 2158.867734 | I25: Omlagt tjeneste | K25: 0 | P25: 3/37 udbetalt | T25: § 18, 5
C27: Omlagt tjeneste | E27: 0 | I27: Rådighedsvagt (bolig) | K27: 0 | P27: Omlagt tjeneste | T27: § 17, 5
I28: Rådighedsvagt (vagtværelse)
C29: Rådighedsvagt (bolig) | E29: 0 | P29: Rådighedsvagt (bolig) | T29: § 19, 1
C30: Rådighedsvagt (vagtværelse) | P30: Rådighedsvagt (vagtværelse) | T30: § 19, 1
I31: Beklædningsgodtg. (vask) | K31: 0
C32: Beklædningsgodtg. (vask) | E32: 0 | P32: Beklædningsgodtg. (vask) | T32: § 25
C33: Beklædningsgodtg. (vask og tøj) | E33: 0 | I33: ferieberettiget løn | K33: 19168.06922 | P33: Beklædningsgodtg. (vask og tøj) | T33: § 25
C35: ferieberettiget løn | E35: 34645.35416 | I35: særlig opsparing | K35: 191.6806922 | P35: ferieberettiget løn | T35: § 27
C37: særlig opsparing | E37: 346.4535416 | I37: pensionsgivende løn | K37: 19359.74991 | P37: særlig opsparing
C39: pensionsgivende løn | E39: 34991.8077 | I39: pensionsprocent | J39: 0.132 | K39: 2555.486988 | P39: pensionsgivende løn | T39: § 16, 1-3
I40: pensionsbidrag, medarbejder | J40: 0.044 | K40: 851.8289959
C41: pensionsprocent | D41: 0.132 | E41: 4618.918617 | I41: pensionsbidrag, arbejdsgiver | J41: 0.0895 | K41: 1732.697617 | P41: pensionsprocent | T41: § 16, 1-3
C42: pensionsbidrag, medarbejder | D42: 0.044 | E42: 1539.639539 | P42: pensionsbidrag, medarbejder | T42: § 16, 1-3
C43: pensionsbidrag, arbejdsgiver | D43: 0.0895 | E43: 3131.766789 | P43: pensionsbidrag, arbejdsgiver | T43: § 16, 1-3

Sheet Ark1 (hidden)
C1: 1998-04-01 | D1: 2000-04-01
B2: 0.2 | C2: =B2 -> 0.2 | G2: 3.57 | H2: 2.97
B3: 0.4 | C3: =B3+C2 -> 0.6 | G3: 1.25 | H3: 1.25
B4: 0.5 | C4: =B4+C3 -> 1.1 | D4: =B4 -> 0.5 | G4: 1.25 | H4: 0.4
B5: 0.6 | C5: =B5+C4 -> 1.7 | D5: =D4+B5 -> 1.1 | G5: =SUM(G2:G4) -> 6.07 | H5: 0.8
B6: 0.25 | C6: 1.95 | D6: =D5+B6 -> 1.35 | H6: =SUM(H2:H5) -> 5.42
B7: 1.22 | C7: 3.17 | D7: 2.57
B8: 0.4 | C8: 3.57 | D8: 2.97

Sheet Satser (hidden)
I1: 1 | J1: 2 | K1: 3 | L1: 4 | M1: 5 | N1: 6 | O1: 7 | P1: 8
A2: fuld tid, månedsnorm | H2: 2012-03-01 | I2: 2013-03-01 | J2: 2014-03-01 | K2: 2015-03-01 | L2: 2016-03-01 | M2: 2017-03-01 | N2: 2018-03-01 | O2: 2019-03-01 | P2: 2020-03-01
A3: 37 | E3: §5b | F3: servicetill. | G3: 1 | I3: 505.04 | J3: 505.04 | K3: 505.04 | L3: 505.04 | M3: 505.04 | N3: 505.04 | O3: 505.04
E4: §9 | F4: Særlig opsp. | G4: 1 | I4: 0.01 | J4: 0.013 | K4: 0.017 | L4: 0.02 | M4: 0.027 | N4: 0.034 | O4: 0.04
A7: Kolonnenummer: | J7: 0.015 | K7: 0.016 | L7: 0.017
A8: 2012-03-01 | B8: 0 | E8: § 17, 5 | F8: omlagte timer | G8: 1 | H8: 32.78 | I8: 32.78 | J8: =I8*(1+J$7) -> 33.2717 | K8: 33.8040472 | L8: 34.378716 | M8: 34.93 | N8: 35.49 | O8: 36.06
A9: 2013-03-01 | B9: 1 | E9: § 17, 8 | F9: inddraget fridøgn | G9: 2 | H9: 316.89 | I9: 316.89 | J9: 321.64335 | K9: 326.7896436 | L9: 332.3450675 | M9: 337.67 | N9: 343.07 | O9: 348.56
A10: 2014-03-01 | B10: 2 | E10: § 18, 1 | F10: 18-07 | G10: 3 | H10: 25.07 | I10: 25.42 | J10: 25.8013 | K10: 26.2141208 | L10: 26.65976085 | M10: 27.09 | N10: 27.52 | O10: 27.96
A11: 2015-03-01 | B11: 3 | E11: § 18, 2 | F11: lø/ma | G11: 4 | H11: 29.67 | I11: 29.67 | J11: 30.11505 | K11: 30.5968908 | L11: 31.11703794 | M11: 31.62 | N11: 32.12 | O11: 32.64
A12: 2016-03-01 | B12: 4 | E12: § 18, 3 | F12: sø/hell. | G12: 5 | H12: 0.5 | I12: 0.5 | J12: 0.5 | K12: 0.5 | L12: 0.5 | M12: 0.5 | N12: 0.5 | O12: 0.5
A13: 2017-03-01 | B13: 5 | E13: § 19, 1 | F13: Rådighed, fra bopæl | G13: 6 | H13: 34 | I13: 34 | J13: =I13*(1+J$7) -> 34.51 | K13: =J13*(1+K$7) -> 35.06216 | L13: =K13*(1+L$7) -> 35.65821672 | M13: 36.23 | N13: 36.81 | O13: 37.4
A14: 2018-03-01 | B14: 6 | E14: §25 | F14: Bekl.godtg./vask | G14: 7 | H14: 0.73 | I14: 0.73 | J14: 0.73 | K14: 0.73 | L14: 0.73 | M14: 0.73 | N14: 0.73 | O14: 0.73
A15: 2019-03-01 | B15: 7 | E15: §25 | F15: Bekl.godtg./vask og tøj | G15: 8 | H15: 1.67 | I15: 1.67 | J15: 1.67 | K15: 1.67 | L15: 1.67 | M15: 1.67 | N15: 1.67 | O15: 1.67
A16: 2020-03-01 | B16: 8
E18: §5a, 1 | F18: Grundløn
F19: Ikke-uddannede, husassist., servicemedarb. | I19: 20211.2 | J19: 20547.9 | K19: 20908.65 | L19: 21293.45 | M19: 21694.28 | N19: 22095.11 | O19: 22495.94
F20: Hjemmehjælpere | I20: 20541.48 | J20: 20878.18 | K20: 21238.93 | L20: 21623.73 | M20: 22024.56 | N20: 22425.39 | O20: 22826.22
F21: Social- og sundhedshj., sygehj. m.fl. | I21: 21035.3 | J21: 21372 | K21: 21732.75 | L21: 22117.55 | M21: 22518.38 | N21: 22919.21 | O21: 23320.04
F22: Social- og sundhedsass., plejehj.ass., plejere | I22: 21913.91 | J22: 22250.61 | K22: 22611.36 | L22: 22996.16 | M22: 23396.99 | N22: 23797.82 | O22: 24198.65
E24: § 5a, 2 | F24: Områdetillæg
G25: 0 | I25: 0 | J25: 0 | K25: 0 | L25: 0 | M25: 0 | N25: 0 | O25: 0
G26: 1 | I26: 537 | J26: 537 | K26: 537 | L26: 537 | M26: 537 | N26: 537 | O26: 537
G27: 2 | I27: 537 | J27: 537 | K27: 537 | L27: 537 | M27: 537 | N27: 537 | O27: 537
G28: 3 | I28: 1074 | J28: 1074 | K28: 1074 | L28: 1074 | M28: 1074 | N28: 1074 | O28: 1074
G29: 4 | I29: 1074 | J29: 1074 | K29: 1074 | L29: 1074 | M29: 1074 | N29: 1074 | O29: 1074
E31: § 7, 1 | F31: erfaringstillæg
G32: 0 | I32: 0 | J32: 0 | K32: 0 | L32: 0 | M32: 0 | N32: 0 | O32: 0
G33: 1 | I33: 0 | J33: 0 | K33: 0 | L33: 0 | M33: 0 | N33: 0 | O33: 0
G34: 2 | I34: 760.74 | J34: 760.74 | K34: 760.74 | L34: 760.74 | M34: 760.74 | N34: 760.74 | O34: 760.74
G35: 3 | I35: 760.74 | J35: 760.74 | K35: 760.74 | L35: 760.74 | M35: 760.74 | N35: 760.74 | O35: 760.74
G36: 4 | I36: 760.74 | J36: 760.74 | K36: 760.74 | L36: 760.74 | M36: 760.74 | N36: 760.74 | O36: 760.74
G37: 5 | I37: 760.74 | J37: 760.74 | K37: 760.74 | L37: 760.74 | M37: 760.74 | N37: 760.74 | O37: 760.74
G38: 6 | I38: 1360.74 | J38: 1360.74 | K38: 1360.74 | L38: 1360.74 | M38: 1360.74 | N38: 1360.74 | O38: 1360.74
G39: 7 | I39: 1360.74 | J39: 1360.74 | K39: 1360.74 | L39: 1360.74 | M39: 1360.74 | N39: 1360.74 | O39: 1360.74
G40: 8 | I40: 1360.74 | J40: 1360.74 | K40: 1360.74 | L40: 1360.74 | M40: 1360.74 | N40: 1360.74 | O40: 1360.74
E43: § 16, 1 og 2 | F43: pension | G43: arbejdsgiverbidrag
F44: egetbidrag | G44: inkl. sundhedsbidrag
E45: 0.072 | F45: 0.024 | G45: 0.0495 | K45: 0.048 | L45: 0.0015
E46: 0.132 | F46: 0.044 | G46: 0.0895 | K46: 0.088 | L46: 0.0015
F48: sundhedsbidrag | G48: 1 | I48: 0.0015 | J48: 0.0015 | K48: 0.0015 | L48: 0.0015 | M48: 0.0015 | N48: 0.0015 | O48: 0.0015 | P48: 0.0015
